bitfinex/quotes_ETHUSD_20260209
["timestamp","ask_amount","ask_price","bid_price","bid_amount"]
[1770666343462,0.9839701,2133.1,2132.2,1.17355273]
[1770666343463,1.9946363,2133.0,2132.2,1.17355273]
[1770666343662,1.0106662,2132.9,2132.3,1.17242024]
[1770666343965,1.0106662,2132.8,2132.2,0.0011]
[1770666344161,1.17213558,2132.9,2132.2,0.0011]
[1770666344162,1.0106662,2132.7,2132.2,0.0011]
[1770666344345,1.0106662,2132.6,2132.2,0.0011]
[1770666344544,1.0106662,2132.5,2132.2,0.0011]
[1770666344773,0.05631688,2132.7,2132.2,0.0011]
[1770666344774,1.0106662,2132.4,2132.2,0.0011]
[1770666345070,0.9839701,2132.6,2132.0,0.0011]
[1770666345071,1.0106662,2132.3,2132.0,0.0011]
[1770666345271,1.0082946,2132.2,2132.0,0.0011]
[1770666345486,1.04028698,2132.5,2132.0,0.0011]
[1770666345677,1.04028698,2132.2,2131.5,0.0011]
[1770666345854,0.05631688,2132.0,2131.5,0.0011]
[1770666346173,1.22865421,2132.5,2131.5,0.97453368]
[1770666346345,1.17233733,2132.5,2131.5,0.97453368]
[1770666346547,2.21262431,2132.5,2131.5,0.0011]
[1770666347367,0.05631688,2132.3,2131.5,0.0011]
[1770666348268,1.17239066,2132.4,2131.5,0.0011]
[1770666349061,1.04028698,2132.3,2131.5,0.0011]
[1770666349360,1.22868644,2132.5,2131.5,0.0011]
[1770666350684,1.22868644,2132.5,2131.5,2.15182179]
[1770666351283,2.16608871,2132.5,2131.5,2.15182179]
[1770666352088,1.228573,2132.7,2131.6,0.97783885]
[1770666352381,5.38460241,2132.8,2131.7,0.97893885]
[1770666352563,5.44091929,2132.8,2131.8,1.17271789]
[1770666352884,3.275,2132.8,2131.8,2.15055674]
[1770666353086,4.84607145,2133.5,2131.9,0.97783885]
[1770666353087,0.93740227,2133.4,2131.9,0.97783885]
[1770666353271,0.05631688,2133.5,2131.9,0.97783885]
[1770666353596,0.05631688,2133.5,2131.8,11.64098225]
[1770666353597,8.44876547,2133.6,2132.3,0.97783885]
[1770666353598,7.277,2133.6,2132.3,0.97783885]
[1770666353767,4.0,2133.6,2132.7,0.97783885]
[1770666354086,1e-08,2133.6,2132.7,0.97783885]
[1770666354285,0.0012,2133.9,2132.7,0.97783885]
[1770666354579,0.0012,2133.9,2132.9,0.97783885]
[1770666356491,0.0012,2133.9,2132.8,1.17216804]
[1770666356492,0.05631688,2133.8,2132.8,1.17216804]
[1770666356691,0.0012,2133.9,2132.7,5.66651101]
[1770666357787,0.0012,2133.9,2132.8,0.97783885]
[1770666359098,0.0012,2133.9,2133.0,0.97783885]
[1770666360358,0.0012,2133.9,2133.1,0.97783885]
[1770666360984,0.0012,2133.9,2133.2,2.14978709]
[1770666361387,0.99371915,2133.8,2132.6,0.97783885]
[1770666361705,0.05631688,2133.6,2133.0,1.17205164]
[1770666362282,0.05631688,2133.6,2133.1,1.17200031]
[1770666362590,0.05631688,2133.6,2133.0,1.17201423]
[1770666363407,0.0012,2133.9,2132.6,0.97783885]
[1770666363562,0.0012,2133.9,2133.1,0.97783885]
[1770666364186,0.0012,2133.7,2133.1,0.97783885]
[1770666364383,0.93860227,2133.7,2132.7,3.276]
[1770666364695,0.0012,2133.9,2132.8,0.97783885]
[1770666364868,0.0012,2133.9,2133.0,0.97783885]
[1770666365397,0.05751688,2133.9,2133.1,1.17200318]
[1770666365577,0.05751688,2133.9,2133.1,2.14984203]
[1770666365578,0.0012,2133.9,2133.1,2.14984203]
[1770666366661,0.0012,2133.9,2133.1,1.17200318]
[1770666366872,0.0012,2133.9,2133.0,1.17201402]
[1770666366873,0.05631688,2133.8,2133.0,1.17201402]
[1770666367395,1.22795508,2133.8,2132.9,4.68836013]
[1770666368403,2.16535735,2133.8,2132.9,4.68836013]
[1770666369394,1.00349154,2133.7,2132.9,4.68836013]
[1770666369590,2.16535735,2133.8,2132.9,4.68836013]
[1770666369790,0.99371915,2133.6,2132.3,4.68934551]
[1770666369996,1.94089392,2133.5,2132.8,1.17216485]
[1770666370198,0.93740227,2133.5,2132.8,1.17216485]
[1770666370382,0.05631688,2133.6,2132.8,1.17216485]
[1770666370703,0.05631688,2133.7,2132.8,1.17216485]
[1770666370905,2.10904047,2133.8,2132.8,1.17216485]
[1770666371100,1.00352061,2133.7,2132.8,1.17216485]
[1770666371308,1.1716382,2133.8,2132.7,5.6666466]
[1770666371486,1.00351457,2133.7,2132.7,5.6666466]
[1770666371687,1.1716382,2133.8,2132.7,5.6666466]
[1770666371892,1.00351437,2133.7,2132.7,5.6666466]
[1770666372096,2.16652693,2133.9,2132.7,5.6666466]
[1770666372295,1.00347611,2133.8,2132.7,5.6666466]
[1770666372517,1.00347611,2133.7,2132.7,5.6666466]
[1770666372683,2.16652693,2133.9,2132.7,4.68880775]
[1770666372888,1.00346806,2133.8,2132.8,0.97783885]
[1770666373089,1.00346806,2133.7,2132.8,0.97783885]
[1770666373288,2.16652693,2133.9,2132.8,0.97783885]
[1770666373491,2.17511237,2133.8,2132.9,1.17211308]
[1770666373684,1.05978758,2133.7,2132.9,1.17211308]
[1770666373880,0.05631688,2133.7,2132.9,1.17211308]
[1770666375909,2.16652214,2133.9,2132.9,1.17211308]
[1770666376113,1.00374487,2133.8,2132.9,1.17321308]
[1770666376315,0.0012,2133.5,2132.9,1.17321308]
[1770666377202,5.68117932,2133.9,2133.0,0.97783885]
[1770666377203,0.0012,2133.9,2133.0,0.97783885]
[1770666377713,1.06136191,2133.8,2132.9,1.17321308]
[1770666377884,0.05631688,2133.8,2132.9,1.17321308]
[1770666378079,1.22793834,2133.8,2132.9,1.17321308]
[1770666378283,1.00580346,2133.7,2132.9,1.17321308]
[1770666378586,1.22793834,2133.8,2132.9,1.17321308]
[1770666378786,1.00581996,2133.7,2132.9,1.17321308]
[1770666379006,1.22793834,2133.8,2132.9,1.17321308]
[1770666379208,1.00582012,2133.7,2132.9,1.17321308]
[1770666379486,1.00582012,2133.6,2132.9,1.17321308]
[1770666379696,0.05631688,2133.8,2132.9,1.17321308]
[1770666380012,1.00668645,2133.7,2132.9,1.17321308]
[1770666380191,1.00668645,2133.6,2132.9,2.14217604]
[1770666380520,0.05751688,2133.9,2132.9,2.14217604]
[1770666380688,1.00760982,2133.8,2132.9,2.14217604]
[1770666381081,1.00760982,2133.7,2132.9,2.14217604]
[1770666381286,1.00760982,2133.6,2132.9,2.14217604]
[1770666381488,1.00760982,2133.5,2132.9,2.14217604]
[1770666381815,0.0012,2133.9,2132.9,2.14217604]
[1770666382114,1.008929,2133.8,2132.9,2.14217604]
[1770666382318,1.008929,2133.7,2132.9,2.14217604]
[1770666382500,1.008929,2133.6,2132.9,2.14217604]
[1770666382690,1.008929,2133.5,2132.9,2.14217604]
[1770666382888,0.0012,2133.9,2132.9,2.14217604]
[1770666383189,1.00919625,2133.7,2132.9,1.17321308]
[1770666383402,1.01049087,2133.6,2132.9,1.17321308]
[1770666383605,1.01049087,2133.5,2132.9,1.17321308]
[1770666383804,1.01049087,2133.4,2132.9,1.17321308]
[1770666383991,1.01049087,2133.3,2132.9,1.17321308]
[1770666384187,1.01049087,2133.2,2132.9,0.0011]
[1770666384397,1.22910119,2133.9,2132.9,0.97006296]
[1770666384812,2.18198056,2133.9,2132.9,0.97006296]
[1770666385011,1.00919625,2133.7,2132.9,0.0011]
[1770666387721,1.17172853,2133.6,2132.9,0.0011]
[1770666388035,1.00919625,2133.5,2132.9,0.0011]
[1770666388393,1.00919625,2133.5,2133.1,0.0011]
[1770666388594,1.01039625,2133.5,2133.1,0.0011]
[1770666388990,0.95407937,2133.5,2133.1,0.0011]
[1770666389190,0.0012,2133.5,2133.1,0.0011]
[1770666394830,0.0012,2133.5,2133.1,0.97006296]
[1770666395908,1.227773,2134.1,2133.1,0.97006296]
[1770666396451,1.01194544,2134.0,2133.1,0.97006296]
[1770666396733,1.01194544,2133.9,2133.1,0.97006296]
[1770666397046,1.01194544,2133.8,2133.2,1.17194824]
[1770666397204,1.01194544,2133.7,2133.2,1.17194824]
[1770666397405,1.01194544,2133.6,2133.2,1.17194824]
[1770666397611,0.05631688,2134.1,2133.2,2.1409112]
[1770666397828,2.18063269,2134.2,2133.2,2.1409112]
[1770666398061,3.276,2134.3,2133.3,0.96896296]
[1770666398211,0.95287937,2134.8,2133.6,0.96896296]
[1770666398828,0.05631688,2134.9,2133.8,0.96896296]
[1770666399129,0.05631688,2134.5,2133.7,1.17167361]
[1770666399821,1.00919625,2134.1,2133.1,0.0011]
[1770666400009,1.00919625,2134.1,2133.4,1.17179207]
[1770666400010,0.05631688,2133.9,2133.4,1.17179207]
[1770666400327,0.05631688,2133.9,2133.5,1.17177346]
[1770666400737,0.05631688,2133.7,2133.3,0.0011]
[1770666401315,1.22799535,2133.7,2133.3,0.0011]
[1770666402136,1.17166897,2133.8,2133.3,0.0011]
[1770666402830,0.05631688,2133.5,2133.1,0.0011]
[1770666403031,1.17183838,2133.4,2133.1,0.0011]
[1770666404104,1.22814333,2133.5,2133.1,0.0011]
[1770666406422,5.39955727,2133.7,2133.1,0.0011]
[1770666406630,4.50299478,2133.7,2133.1,0.0011]
[1770666407008,3.33131688,2133.7,2133.1,0.0011]
[1770666407208,0.95287937,2134.0,2133.1,0.0011]
[1770666407209,1.17155192,2134.0,2133.1,0.0011]
[1770666408317,1.17155192,2134.0,2132.6,0.0011]
[1770666408318,1.00919625,2133.3,2132.6,0.0011]
[1770666408523,1.00919625,2133.3,2132.1,0.0011]
[1770666408524,0.05631688,2132.9,2132.1,0.0011]
[1770666409030,1.17194824,2133.2,2132.1,0.97006296]
[1770666409212,0.05631688,2132.9,2132.1,0.97006296]
[1770666409414,0.05631688,2133.1,2132.1,0.0011]
[1770666409621,8.02010986,2133.3,2132.1,0.96288175]
[1770666409622,4.50424516,2133.3,2132.1,0.96288175]
[1770666410550,4.50424516,2133.3,2132.2,1.17249788]
[1770666410918,2.22165311,2133.3,2132.2,1.17249788]
[1770666411358,0.05631688,2132.9,2132.2,1.17249788]
[1770666411523,0.05631688,2133.1,2132.2,1.17249788]
[1770666412446,2.22165311,2133.3,2132.2,1.17249788]
[1770666412645,2.22165311,2133.3,2132.1,5.6528733]
[1770666412846,2.22165311,2133.3,2132.2,0.96178175]
[1770666413342,2.22165311,2133.3,2132.3,0.0011]
[1770666413517,2.22285311,2133.3,2132.3,0.0011]
[1770666414915,1.04972483,2132.9,2132.3,0.0011]
[1770666415118,0.05631688,2132.7,2132.3,0.0011]
[1770666415539,1.04972483,2132.9,2132.3,0.0011]
[1770666416359,0.05631688,2133.1,2132.3,0.0011]
[1770666416521,0.05631688,2132.9,2132.3,0.0011]
[1770666417326,1.22835558,2133.1,2132.3,0.0011]
[1770666417758,0.05631688,2133.1,2132.3,0.0011]
[1770666419146,0.05631688,2133.1,2132.3,1.1735429]
[1770666421251,1.22832434,2133.1,2132.3,1.1735429]
[1770666421962,0.05751688,2133.3,2132.4,0.96178175]
[1770666422164,0.0012,2133.3,2132.4,0.96178175]
[1770666422529,0.0012,2134.1,2132.6,0.96178175]
[1770666422853,0.0012,2134.1,2133.0,0.96178175]
[1770666423226,0.0012,2134.1,2133.2,0.96178175]
[1770666423630,3.276,2134.4,2133.2,1.19535205]
[1770666423829,2.16450699,2134.8,2133.2,1.19535205]
[1770666423830,1.22741592,2134.8,2133.2,1.19535205]
[1770666424076,1.17105761,2134.9,2133.5,0.96178175]
[1770666424227,3.276,2135.0,2133.6,0.96178175]
[1770666424642,3.276,2135.0,2133.8,0.96178175]
[1770666424863,0.05631688,2134.9,2133.8,0.96178175]
[1770666425236,3.276,2135.0,2133.8,0.96178175]
[1770666425962,1.29458715,2135.8,2134.2,11.56926159]
[1770666426129,1.29458715,2135.8,2134.4,0.96178175]
[1770666426130,0.05631688,2135.6,2134.4,0.96178175]
[1770666426334,1.22684531,2135.8,2134.4,0.96178175]
[1770666426534,0.05631688,2135.6,2134.4,0.96178175]
[1770666427440,0.05631688,2135.3,2134.3,3.276]
[1770666427640,0.05631688,2135.1,2134.1,0.96178175]
[1770666427867,0.05631688,2134.9,2133.9,1.1715638]
[1770666428238,1.22725796,2135.1,2133.9,1.1715638]
[1770666428743,0.05631688,2134.9,2133.9,1.1715638]
[1770666429143,0.05631688,2134.6,2133.9,1.1715638]
[1770666429344,1.04972483,2134.9,2133.9,1.1715638]
[1770666429548,0.05631688,2134.9,2133.9,1.1715638]
[1770666429859,1.17106988,2134.8,2133.7,5.64803696]
[1770666430264,0.05631688,2134.5,2133.6,1.17172853]
[1770666430436,0.05631688,2134.3,2133.5,1.17174558]
[1770666430758,0.05631688,2134.1,2133.3,1.17184536]
[1770666430953,0.05631688,2134.1,2133.5,1.17177919]
[1770666431532,0.05631688,2134.1,2133.5,1.17177988]
[1770666431738,0.05631688,2134.2,2133.5,1.17177988]
[1770666431945,0.05631688,2134.2,2133.1,4.68799016]
[1770666432142,0.05631688,2135.1,2133.1,4.68799016]
[1770666432143,1.1711057,2134.8,2133.4,0.96178175]
[1770666432951,0.05631688,2134.8,2133.6,0.96178175]
[1770666433866,0.05631688,2134.6,2133.6,0.96178175]
[1770666434444,1.17112474,2134.7,2133.7,1.17167361]
[1770666435445,0.05631688,2134.6,2133.7,1.17167361]
[1770666436676,1.22751036,2134.6,2133.7,1.17167361]
[1770666437255,0.05631688,2134.0,2132.7,4.68872902]
[1770666437468,0.05631688,2134.0,2132.7,0.96178175]
[1770666437661,0.05631688,2134.0,2133.4,1.17182747]
[1770666437967,0.05631688,2134.0,2132.7,0.96178175]
[1770666437968,0.05631688,2133.8,2133.5,0.0011]
[1770666438270,0.05631688,2134.0,2133.3,1.1718488]
[1770666438477,0.05631688,2134.0,2133.4,1.17183374]
[1770666438672,0.05631688,2134.4,2133.1,2.13378493]
[1770666438673,1.22762367,2134.4,2133.1,2.13378493]
[1770666438860,1.22762367,2134.4,2133.2,0.96178175]
[1770666439986,4.44625847,2134.5,2133.2,0.96178175]
[1770666440153,4.44625847,2134.5,2133.3,0.9052128]
[1770666440851,4.44625847,2134.5,2133.4,1.17183838]
[1770666441457,3.275,2134.5,2133.5,0.9052128]
[1770666442460,1.17120493,2134.6,2133.5,0.9052128]
[1770666442671,0.05631688,2134.3,2133.4,1.17183838]
[1770666442976,1.22771157,2134.3,2133.3,4.68735352]
[1770666443382,1.2276636,2134.3,2133.3,4.68735352]
[1770666443761,4.74084162,2134.7,2133.3,4.68735352]
[1770666443762,1.17121688,2134.6,2133.4,0.9052128]
[1770666443975,1.22748612,2134.7,2133.4,0.9052128]
[1770666444373,0.05631688,2134.5,2133.3,4.68735352]
[1770666444584,0.05631688,2134.3,2133.3,4.68735352]
[1770666444886,1.22781176,2134.1,2133.3,1.17189331]
[1770666445089,1.22777351,2134.1,2133.3,1.17189331]
[1770666446279,2.20351055,2134.1,2133.2,3.275]
[1770666446477,1.03205392,2133.9,2133.1,1.17199994]
[1770666446676,0.05631688,2133.9,2133.2,1.17194696]
[1770666446993,1.22791792,2133.9,2132.7,5.59506048]
[1770666447472,0.05631688,2134.1,2132.7,4.68984768]
[1770666447671,1.22779054,2134.1,2132.8,0.9052128]
[1770666448187,5.47844668,2134.3,2132.8,0.9052128]
[1770666448790,0.05631688,2134.1,2132.8,0.9052128]
[1770666449105,0.05631688,2133.9,2132.9,1.17211308]
[1770666449396,1.22777268,2134.1,2132.9,1.17211308]
[1770666449973,1.22777268,2134.1,2132.9,1.17321308]
[1770666450991,0.05631688,2133.9,2132.9,1.17321308]
[1770666451205,0.05631688,2133.9,2132.9,0.0011]
[1770666451206,0.05631688,2133.5,2132.9,0.0011]
[1770666451789,0.05631688,2133.7,2132.9,0.0011]
[1770666452109,1.22777268,2134.1,2132.9,0.0011]
[1770666452266,1.22777268,2134.1,2132.9,0.9063128]
[1770666452267,0.05631688,2134.1,2132.9,0.9063128]
[1770666452700,1.17264353,2134.2,2132.9,0.9063128]
[1770666452896,1.22896041,2134.2,2133.0,0.9052128]
[1770666453105,1.22896041,2134.2,2133.1,1.17200318]
[1770666453106,0.0012,2134.2,2133.1,1.17200318]
[1770666453402,0.0012,2134.2,2133.2,0.9052128]
[1770666454296,3.26698782,2134.3,2133.2,0.9052128]
[1770666455078,1.17112877,2134.7,2133.4,0.9052128]
[1770666455380,0.05631688,2134.6,2133.4,0.9052128]
[1770666457103,1.22754805,2134.6,2133.5,1.17178345]
[1770666457408,0.05631688,2134.4,2133.5,1.17178345]
[1770666458012,1.22754805,2134.6,2133.5,1.17178345]
[1770666458906,0.05631688,2134.4,2133.5,1.17178345]
[1770666459282,0.05631688,2134.6,2133.5,1.17178345]
[1770666459595,0.05631688,2134.6,2133.5,2.07699625]
[1770666460106,2.20316444,2134.8,2133.5,2.07699625]
[1770666460301,0.05631688,2134.6,2133.5,2.07699625]
[1770666460628,0.05631688,2134.4,2133.5,2.07699625]
[1770666460903,0.05631688,2134.4,2133.4,4.68713381]
[1770666460904,0.05631688,2134.0,2133.4,1.17183574]
[1770666461283,0.05631688,2133.8,2133.2,1.17191588]
[1770666461689,0.05631688,2133.8,2133.3,1.17188765]
[1770666462499,1.22785564,2134.0,2133.3,1.17188765]
[1770666463006,1.22785564,2134.0,2133.4,0.0011]
[1770666463778,0.05631688,2133.8,2133.4,0.0011]
[1770666464581,1.00950898,2133.7,2133.4,0.0011]
[1770666464897,1.00950898,2133.6,2133.4,0.0011]
[1770666465100,4.4476644,2134.1,2133.4,0.0011]
[1770666465286,1.00945447,2134.0,2133.4,0.0011]
[1770666465486,1.00945447,2133.9,2133.4,0.0011]
[1770666465809,1.00945447,2133.8,2133.4,0.0011]
[1770666465985,1.00945447,2133.7,2133.4,0.0011]
[1770666466181,1.00945447,2133.6,2133.4,0.0011]
[1770666466382,3.2762,2134.1,2133.4,0.0011]
[1770666466705,1.00969422,2134.0,2133.4,0.0011]
[1770666466890,1.00969422,2133.9,2133.4,0.0011]
[1770666467212,0.05631688,2134.0,2132.7,0.0011]
[1770666467213,0.05631688,2133.1,2132.7,0.0011]
[1770666467411,0.05631688,2132.9,2132.3,1.17353161]
[1770666467588,1.00969422,2132.8,2132.3,1.17353161]
[1770666467790,1.00969422,2132.7,2132.3,1.17353161]
[1770666468114,1.00969422,2132.6,2132.3,1.17353161]
[1770666468310,0.05631688,2132.9,2132.3,1.17353161]
[1770666468514,1.00903559,2132.8,2132.3,1.17353161]
[1770666468719,1.00903559,2132.7,2132.3,1.17353161]
[1770666469017,1.00903559,2132.6,2132.3,1.17353161]
[1770666469315,0.05631688,2132.9,2132.3,1.17353161]
[1770666469509,1.00825713,2132.8,2132.3,0.0011]
[1770666469714,1.00825713,2132.7,2132.3,0.0011]
[1770666469896,0.05631688,2132.9,2132.3,0.0011]
[1770666470095,1.00825713,2132.8,2132.3,0.0011]
[1770666470314,1.00825713,2132.7,2132.3,0.0011]
[1770666470514,1.22843309,2132.9,2132.3,0.0011]
[1770666470730,1.22843309,2132.9,2132.1,0.0011]
[1770666470731,0.05631688,2132.4,2132.1,0.0011]
[1770666471013,1.00769393,2132.3,2131.9,0.0011]
[1770666471223,0.05631688,2132.5,2131.9,0.0011]
[1770666471533,1.00685174,2132.4,2131.9,0.0011]
[1770666471685,3.275,2132.6,2131.9,0.0011]
[1770666471887,1.00676521,2132.5,2131.9,0.0011]
[1770666472219,4.44729109,2132.6,2131.9,0.0011]
[1770666472519,1.06267315,2132.5,2131.9,0.0011]
[1770666472735,1.00635627,2132.4,2131.9,0.0011]
[1770666472893,4.44729109,2132.6,2131.9,0.0011]
[1770666472894,4.44728794,2132.6,2131.9,0.0011]
[1770666473091,1.006369,2132.5,2131.9,0.0011]
[1770666473308,3.275,2132.6,2131.9,0.0011]
[1770666473510,1.00578263,2132.5,2131.9,0.0011]
[1770666473712,4.44728332,2132.6,2131.9,0.0011]
[1770666474013,1.06209954,2132.5,2131.9,0.0011]
[1770666474219,0.05631688,2132.5,2131.9,0.0011]
[1770666474712,0.97820974,2132.8,2131.9,0.0011]
[1770666474713,1.17219366,2132.8,2131.9,0.0011]
[1770666474918,1.00528877,2132.7,2131.9,0.0011]
[1770666475088,1.2284683,2132.9,2132.1,0.0011]
[1770666475288,1.00525341,2132.8,2132.1,0.0011]
[1770666475585,0.94432118,2132.7,2132.1,0.0011]
[1770666475889,1.17216884,2132.8,2132.1,0.0011]
[1770666476430,0.05631688,2132.3,2132.1,0.0011]
[1770666476728,0.05631688,2132.3,2131.9,0.0011]
[1770666476948,0.05631688,2132.0,2131.7,0.0011]
[1770666477089,0.05631688,2131.8,2131.3,1.1740706]
[1770666477287,0.05631688,2131.7,2131.3,1.17297537]
[1770666477486,0.05631688,2132.0,2131.3,1.17297537]
[1770666477805,1.22894907,2132.0,2131.1,0.0011]
[1770666478335,0.05631688,2131.8,2131.1,0.0011]
[1770666479927,1.22905508,2131.8,2131.1,0.0011]
[1770666480148,0.05631688,2131.8,2131.1,0.0011]
[1770666480326,0.05631688,2131.6,2131.1,0.0011]
[1770666480531,0.05631688,2131.4,2131.1,0.0011]
[1770666480821,0.05631688,2131.6,2131.1,0.0011]
[1770666481020,0.05631688,2131.4,2131.1,0.0011]
[1770666481339,1.17237184,2132.5,2131.1,0.99844519]
[1770666481525,4.74499827,2132.8,2131.1,0.99844519]
[1770666481526,1.17220879,2132.8,2131.4,0.99734519]
[1770666481733,0.05631688,2132.9,2131.8,0.99734519]
[1770666481931,4.44909456,2133.0,2131.9,1.17266288]
[1770666482160,1.03452662,2133.4,2132.0,11.70051273]
[1770666482310,1.03452662,2133.4,2132.1,0.99734519]
[1770666482311,0.05631688,2133.2,2132.1,0.99734519]
[1770666482515,0.05631688,2133.0,2131.9,4.44966288]
[1770666482743,0.05631688,2132.8,2131.9,4.44966288]
[1770666482943,0.05631688,2133.0,2132.0,0.99734519]
[1770666483111,0.05631688,2133.5,2132.1,0.99734519]
[1770666483316,0.05631688,2133.3,2132.1,0.99734519]
[1770666483541,0.05631688,2133.5,2132.1,0.99734519]
[1770666483726,0.05631688,2133.3,2132.1,0.99734519]
[1770666483924,0.05631688,2133.3,2132.2,1.17249788]
[1770666483925,1.22824812,2133.3,2132.2,1.17249788]
[1770666484328,0.05631688,2132.9,2132.2,1.17249788]
[1770666484532,0.05631688,2132.7,2132.2,1.17249788]
[1770666485332,0.05631688,2132.2,2131.6,1.172784]
[1770666485525,0.05631688,2132.1,2131.4,1.17290897]
[1770666485845,1.22890663,2132.1,2131.2,1.17304804]
[1770666486142,0.05631688,2132.1,2131.2,1.17304804]
[1770666486344,0.05631688,2132.6,2131.3,0.99734519]
[1770666486550,1.22853988,2132.7,2131.3,0.99734519]
[1770666486958,1.03452662,2132.3,2131.1,1.17416903]
[1770666487256,0.05631688,2132.1,2131.1,1.17416903]
[1770666487468,0.05631688,2132.5,2132.0,0.0011]
[1770666487758,0.05631688,2132.5,2131.1,11.64376627]
[1770666487759,4.0,2132.1,2131.2,0.99734519]
[1770666487923,5.17255483,2132.1,2131.2,1.17301607]
[1770666488280,4.0,2132.1,2131.2,1.17301607]
[1770666488759,5.17256147,2132.1,2131.2,1.17301607]
[1770666489458,0.05631688,2132.0,2131.2,1.17301607]
[1770666489668,0.05631688,2132.0,2131.1,1.17416895]
[1770666489880,0.05631688,2132.3,2131.1,0.0011]
[1770666490087,1.0033037,2132.2,2131.1,0.99844519]
[1770666490255,1.06032443,2132.1,2131.1,0.99844519]
[1770666490460,1.00400755,2132.0,2131.1,0.99844519]
[1770666490763,0.05631688,2131.9,2131.1,0.0011]
[1770666491290,0.05631688,2132.1,2131.1,0.0011]
[1770666491466,1.1724429,2132.4,2131.1,0.99844519]
[1770666491658,1.06051765,2132.3,2131.1,0.99844519]
[1770666491856,1.06051765,2132.3,2131.2,1.17304804]
[1770666491857,1.17260787,2132.0,2131.2,1.17304804]
[1770666492190,0.05631688,2131.7,2131.1,0.0011]
[1770666492357,0.0430107,2131.5,2131.1,0.0011]
[1770666492868,0.0430107,2131.5,2130.7,0.0011]
[1770666492869,0.05631688,2131.0,2130.7,0.0011]
[1770666493280,1.06109418,2130.9,2130.5,0.0011]
[1770666493485,0.05631688,2131.2,2130.5,0.0011]
[1770666493680,0.05631688,2131.0,2130.5,0.0011]
[1770666493881,2.1780069,2130.9,2130.5,0.0011]
[1770666494201,0.05631688,2131.2,2130.5,0.0011]
[1770666494406,1.00455197,2131.1,2130.5,0.0011]
[1770666494576,1.17302409,2131.3,2130.5,0.0011]
[1770666494577,1.22934097,2131.3,2130.5,0.0011]
[1770666494772,1.00451314,2131.2,2130.5,0.0011]
[1770666494999,3.34761321,2132.0,2130.5,0.99844519]
[1770666495000,1.17285744,2131.6,2130.5,0.99844519]
[1770666495204,1.00434776,2131.5,2130.5,0.99844519]
[1770666495400,1.22917432,2131.6,2130.5,0.99844519]
[1770666495699,1.00481103,2131.5,2130.5,0.99844519]
[1770666495905,1.00481103,2131.4,2130.6,1.17337839]
[1770666496094,1.22917432,2131.6,2130.6,1.17337839]
[1770666496289,1.00473955,2131.5,2130.6,1.17337839]
[1770666496490,1.00473955,2131.4,2130.6,1.17337839]
[1770666496691,1.00473955,2131.3,2130.6,1.17337839]
[1770666496914,1.17274303,2131.8,2130.6,2.17072358]
[1770666497217,0.05631688,2132.1,2131.0,0.99734519]
[1770666497387,0.05631688,2131.9,2131.0,0.99734519]
[1770666497574,1.00577907,2131.8,2131.0,0.99734519]
[1770666497781,0.05631688,2132.1,2131.0,0.99734519]
[1770666497979,1.22902538,2131.9,2130.6,2.17072358]
[1770666498212,0.05631688,2131.7,2130.6,2.17072358]
[1770666498376,0.05631688,2131.7,2130.5,1.17451854]
[1770666498377,1.06209505,2131.6,2130.5,1.17451854]
[1770666498708,0.05631688,2131.0,2130.5,0.0011]
[1770666498887,0.05631688,2131.6,2130.7,0.0011]
[1770666499095,0.05631688,2131.4,2130.7,0.0011]
[1770666499420,1.00622353,2131.3,2130.7,0.0011]
[1770666499591,0.05631688,2131.4,2130.7,0.0011]
[1770666499592,0.05631688,2130.8,2130.7,0.0011]
[1770666499778,0.05631688,2131.0,2130.7,0.0011]
[1770666499983,0.05631688,2131.4,2130.7,0.0011]
[1770666500183,2.17922539,2131.3,2130.7,0.0011]
[1770666500482,1.06244838,2131.2,2130.7,0.0011]
[1770666500784,1.0061315,2131.1,2130.7,0.0011]
[1770666500989,1.22916785,2131.6,2130.7,0.0011]
[1770666501194,1.00604126,2131.5,2130.7,0.0011]
[1770666501396,1.00604126,2131.4,2130.7,0.0011]
[1770666501602,1.00604126,2131.3,2130.7,0.0011]
[1770666501910,1.22916785,2131.6,2130.7,0.0011]
[1770666502110,1.00588344,2131.5,2130.7,0.0011]
[1770666502316,1.00588344,2131.4,2130.7,0.0011]
[1770666503020,1.00588344,2131.3,2130.7,0.0011]
[1770666503196,1.22920609,2131.5,2130.7,0.0011]
[1770666503511,1.00588261,2131.4,2130.7,0.0011]
[1770666503702,1.00588261,2131.3,2130.7,0.0011]
[1770666504011,1.22920609,2131.5,2130.7,0.0011]
[1770666504305,0.05631688,2131.3,2130.7,0.0011]
[1770666504508,1.22906617,2131.8,2130.7,0.0011]
[1770666504705,3.33431688,2132.1,2130.9,11.38215525]
[1770666504706,1.00576278,2131.7,2130.9,11.38215525]
[1770666504910,1.17246859,2132.3,2131.0,0.91255801]
[1770666505104,1.00547204,2132.2,2131.0,0.91255801]
[1770666505415,1.00547204,2132.1,2131.0,0.91255801]
[1770666505583,0.0012,2132.5,2131.4,0.91255801]
[1770666505790,0.05631688,2132.4,2131.4,0.91255801]
[1770666505986,1.1735334,2132.5,2131.4,0.91255801]
[1770666506486,1.1735334,2132.5,2131.5,1.17288294]
[1770666506487,0.0012,2132.5,2131.5,1.17288294]
[1770666507612,0.05631688,2132.2,2131.5,1.17288294]
[1770666507913,0.05631688,2132.2,2131.4,1.17290038]
[1770666508485,1.22881747,2132.2,2131.2,4.69218723]
[1770666509199,0.05631688,2132.0,2131.2,4.69218723]
[1770666509399,0.05631688,2132.0,2131.2,1.17304804]
[1770666509803,1.22881747,2132.2,2131.2,1.17304804]
[1770666511924,4.68980589,2132.3,2131.3,0.91255801]
[1770666511925,0.0012,2132.3,2131.3,0.91255801]
[1770666512604,0.0012,2132.3,2131.2,1.17304804]
[1770666512605,0.05631688,2132.2,2131.2,1.17304804]
[1770666513621,1.22883937,2132.2,2131.2,1.17304804]
[1770666514620,0.05631688,2131.9,2131.2,1.17304804]
[1770666515024,1.22883937,2132.2,2131.2,1.17304804]
[1770666515222,0.05631688,2131.9,2131.2,1.17304804]
[1770666515524,0.05631688,2131.5,2130.8,1.17434597]
[1770666515694,0.05631688,2131.5,2130.9,1.17320908]
[1770666515894,0.05631688,2131.3,2130.8,0.0011]
[1770666516719,0.05631688,2131.1,2130.8,0.0011]
[1770666517124,0.05631688,2130.9,2130.5,0.0011]
[1770666517421,1.22954576,2130.9,2130.5,0.0011]
[1770666518089,0.05631688,2130.7,2130.5,0.0011]
[1770666518294,0.05631688,2130.7,2130.3,0.0011]
[1770666518522,0.05631688,2130.7,2130.1,0.0011]
[1770666518523,0.05631688,2130.5,2130.1,0.0011]
[1770666518726,1.00693938,2130.4,2130.1,0.0011]
[1770666518904,0.05631688,2130.3,2130.1,0.0011]
[1770666519099,0.05631688,2130.3,2129.7,4.45294611]
[1770666519100,0.05631688,2130.5,2129.7,4.45294611]